bitfinex-derivatives/quotes_ETHF0:USTF0_20250518
["timestamp","ask_amount","ask_price","bid_price","bid_amount"]
[1747605365303,16.402,2405.8,2405.7,3.19444741]
[1747605365594,3.2078,2406.8,2406.3,2.82226866]
[1747605365797,2.5778,2407.6,2406.7,6.03006866]
[1747605366099,13.369,2408.3,2408.2,2.82226866]
[1747605366297,16.6098,2408.3,2408.0,2.82226866]
[1747605366597,0.83024,2407.7,2406.9,6.0433]
[1747605366797,13.42,2407.6,2407.2,2.82226866]
[1747605366990,13.424,2407.5,2407.2,2.82226866]
[1747605367300,14.24033,2407.4,2406.9,5.7586]
[1747605367502,2.7752,2407.3,2407.2,2.82226866]
[1747605367695,13.396,2407.3,2407.0,0.83045]
[1747605367894,2.7752,2407.7,2407.2,2.82226866]
[1747605368090,1.22158627,2408.0,2407.9,2.82226866]
[1747605368402,5.47286795,2408.9,2408.6,2.82226866]
[1747605368600,5.47286795,2408.9,2408.8,2.82226866]
[1747605368802,1.75832461,2408.9,2408.8,3.65210866]
[1747605368999,2.7752,2410.1,2408.8,11.58516995]
[1747605369195,2.7752,2410.1,2409.7,2.02360405]
[1747605369499,14.38843,2410.0,2409.7,2.02360405]
[1747605369699,2.7752,2409.9,2409.7,2.02360405]
[1747605371203,3.60466,2409.9,2409.7,2.02360405]
[1747605371496,1.18671636,2409.8,2409.7,2.02360405]
[1747605372802,1.18671636,2409.8,2409.7,11.06093405]
[1747605373001,1.18671636,2409.8,2409.7,11.34359853]
[1747605374097,3.2078,2410.4,2409.7,10.51406853]
[1747605374293,3.2078,2410.4,2410.3,2.02360405]
[1747605374895,0.82923,2410.6,2410.3,2.02360405]
[1747605375095,3.88939964,2410.7,2410.5,2.02360405]
[1747605375290,0.82922,2410.6,2410.4,2.6957]
[1747605375605,0.82929,2410.4,2410.3,3.058]
[1747605375803,3.2078,2410.4,2409.7,3.2078]
[1747605376103,0.68159964,2410.7,2410.3,6.06071405]
[1747605376310,0.68159964,2410.7,2410.6,2.02360405]
[1747605376799,0.68159964,2410.7,2410.6,2.30568508]
[1747605378198,1.86448348,2410.7,2410.6,2.30568508]
[1747605378392,1.86448348,2410.7,2410.6,3.13490508]
[1747605378598,1.86448348,2410.7,2410.6,2.30568508]
[1747605378798,1.86448348,2410.7,2410.6,3.13490508]
[1747605379394,1.18288384,2410.7,2410.6,3.13490508]
[1747605379898,1.18288384,2410.7,2410.6,6.34270508]
[1747605381101,1.18288384,2410.7,2410.6,5.51348508]
[1747605381503,1.18288384,2410.7,2410.6,6.34270508]
[1747605382105,1.18288384,2410.7,2410.6,5.51348508]
[1747605382603,1.18288384,2410.7,2410.6,5.23140405]
[1747605384199,21.9696449,2412.1,2410.8,2.07288]
[1747605384405,8.9026449,2412.1,2412.0,2.85234405]
[1747605384797,8.9026449,2412.1,2411.9,0.82875]
[1747605385098,8.9026449,2412.1,2412.0,2.02360405]
[1747605385298,8.9026449,2412.1,2411.8,3.2078]
[1747605385501,0.82877,2411.9,2411.8,2.02360405]
[1747605385804,0.82879,2411.9,2411.6,13.062]
[1747605386000,0.8288,2411.8,2411.7,2.02360405]
[1747605386208,0.82878,2411.9,2411.7,2.02360405]
[1747605386396,0.82878,2411.9,2411.6,13.062]
[1747605386598,3.67714,2412.0,2411.7,2.02360405]
[1747605387297,3.67714,2412.0,2411.6,13.062]
[1747605387498,3.67714,2412.0,2411.7,2.02360405]
[1747605387704,0.82879,2411.9,2411.7,2.02360405]
[1747605388006,0.82879,2411.9,2411.6,15.8448]
[1747605388196,0.82879,2411.9,2411.7,2.02360405]
[1747605388396,12.956,2411.8,2411.7,2.02360405]
[1747605388596,15.6764,2411.8,2411.3,13.059]
[1747605388798,13.62459964,2412.1,2411.7,2.02360405]
[1747605389005,0.82878,2411.9,2411.7,2.02360405]
[1747605389208,0.82878,2411.9,2411.5,0.82891]
[1747605389405,0.82878,2411.9,2411.7,2.02360405]
[1747605389608,6.60979964,2412.1,2411.7,2.02360405]
[1747605389808,12.903,2412.0,2411.8,2.6175]
[1747605390205,3.40199964,2412.1,2411.9,2.02360405]
[1747605390409,13.55559964,2412.1,2412.0,2.02360405]
[1747605390811,0.68159964,2412.1,2412.0,2.02360405]
[1747605391104,0.68159964,2412.1,2411.8,3.2078]
[1747605391311,5.9282,2412.0,2411.5,3.2078]
[1747605391605,0.82879,2411.9,2411.7,2.02360405]
[1747605391805,15.6671,2411.8,2411.7,2.02360405]
[1747605392112,3.63692,2411.8,2411.5,3.2078]
[1747605392301,3.63692,2411.8,2411.7,2.02360405]
[1747605392495,2.8081,2411.8,2411.7,2.02360405]
[1747605392701,2.8081,2411.8,2411.5,5.8543]
[1747605392998,2.8081,2411.8,2411.7,2.02360405]
[1747605393510,0.8288,2411.9,2411.5,18.9113]
[1747605393808,0.82881,2411.8,2411.7,2.02360405]
[1747605394003,3.63689,2411.9,2411.7,2.02360405]
[1747605394205,3.63689,2411.9,2411.5,18.9113]
[1747605394404,3.63689,2411.9,2411.7,2.02360405]
[1747605394605,0.82881,2411.8,2411.7,2.02360405]
[1747605394803,0.82881,2411.8,2411.5,18.9113]
[1747605395010,0.82881,2411.8,2411.7,2.02360405]
[1747605395211,0.82887,2411.6,2411.5,3.2078]
[1747605395505,0.82901,2411.3,2411.1,12.705]
[1747605395705,0.82901,2411.3,2411.2,2.02360405]
[1747605395913,0.82908,2411.0,2410.9,12.705]
[1747605396103,0.82908,2411.0,2410.9,15.01107869]
[1747605396306,5.21850782,2411.0,2410.9,0.28247464]
[1747605396815,0.82917,2410.8,2410.6,15.405]
[1747605397011,0.82917,2410.8,2410.7,2.02360405]
[1747605397409,5.0,2410.8,2408.5,0.07218098]
[1747605397716,4.03736,2409.6,2409.5,2.02360405]
[1747605397910,0.82956,2409.6,2409.5,2.02360405]
[1747605398307,0.82956,2409.6,2409.5,2.30745246]
[1747605398506,2.01118782,2409.6,2409.5,2.30745246]
[1747605398713,1.18162782,2409.6,2409.5,8.13705246]
[1747605399211,2.42993554,2409.8,2409.7,0.82953]
[1747605399512,2.42993554,2409.8,2409.7,15.56013405]
[1747605399811,2.42993554,2409.8,2409.7,20.84398246]
[1747605400407,2.42993554,2409.8,2409.7,24.05178246]
[1747605400612,2.42993554,2409.8,2409.7,26.71118246]
[1747605402513,2.47444084,2410.0,2409.8,0.82947]
[1747605402704,2.47444084,2410.0,2409.9,0.28384841]
[1747605402908,15.13544084,2410.0,2409.9,0.28384841]
[1747605403108,22.92604084,2410.0,2409.9,0.28384841]
[1747605403318,22.92604084,2410.0,2409.9,8.41e-06]
[1747605403812,0.8297,2409.2,2409.1,12.708]
[1747605404011,0.8297,2409.2,2409.1,14.73160405]
[1747605404211,0.8297,2409.2,2409.1,12.708]
[1747605404510,0.82984,2408.8,2408.7,12.708]
[1747605404905,3.2078,2409.0,2408.2,42.64203]
[1747605404906,15.8248,2409.0,2408.2,12.708]
[1747605405212,12.64,2408.9,2408.7,2.02360405]
[1747605405413,2.7724,2408.9,2408.7,2.02360405]
[1747605405808,15.4014,2408.9,2408.7,2.02360405]
[1747605406708,3.2078,2409.0,2408.8,2.02360405]
[1747605406904,3.28624499,2409.1,2409.0,0.82977]
[1747605407113,3.28624499,2409.1,2409.0,5.91137405]
[1747605407413,3.2078,2409.9,2409.1,2.07435]
[1747605407613,3.2078,2409.9,2409.8,2.85309405]
[1747605407817,18.4976,2411.1,2410.2,4.09693405]
[1747605408007,0.08296001,2410.8,2410.7,0.82916]
[1747605408207,0.82919,2410.7,2410.6,3.058]
[1747605408404,7.99464,2410.7,2409.9,12.712]
[1747605408704,3.2078,2410.4,2409.7,3.2078]
[1747605408909,0.82944,2410.0,2409.6,41.826]
[1747605409109,2.7138,2409.9,2409.3,3.2078]
[1747605409410,3.2078,2409.4,2408.7,0.09218003]
[1747605409609,15.3448,2409.3,2408.8,2.02360405]
[1747605409818,16.17449,2409.3,2408.7,3.29998003]
[1747605410026,1.64000529,2409.0,2408.8,2.02360405]
[1747605410309,1.64000529,2409.0,2408.7,3.29998003]
[1747605410310,1.64000529,2409.0,2408.9,0.8298]
[1747605410511,0.17759324,2409.2,2409.1,2.85334405]
[1747605410814,2.8309,2410.1,2409.8,0.82949]
[1747605411016,2.8309,2410.1,2410.0,2.02360405]
[1747605411414,0.68159964,2410.2,2410.0,2.02360405]
[1747605411605,0.68159964,2410.2,2410.1,2.02360405]
[1747605411809,0.68159964,2410.2,2409.9,2.9201]
[1747605412014,0.82946,2409.9,2409.8,3.2078]
[1747605412216,0.82957,2409.6,2409.1,15.6341]
[1747605412517,0.82965,2409.4,2409.2,2.02360405]
[1747605412717,2.8309,2409.3,2409.2,2.02360405]
[1747605413310,3.97054829,2409.3,2409.2,2.02360405]
[1747605413913,1.13964829,2409.3,2409.2,2.85330405]
[1747605414311,1.13964829,2409.3,2409.2,7.85330405]
[1747605414510,9.856,2409.9,2409.2,7.85330405]
[1747605414810,9.856,2409.9,2409.8,2.02360405]
[1747605415018,16.17219964,2410.2,2409.8,14.73760405]
[1747605415217,17.00157964,2410.2,2409.9,2.7662]
[1747605415518,0.82939,2410.1,2410.0,2.02360405]
[1747605415721,16.17219964,2410.2,2410.0,0.28087834]
[1747605415912,2.7699,2410.1,2410.0,0.28087834]
[1747605416113,3.59929,2410.1,2410.0,0.28087834]
[1747605416415,9.73874806,2410.1,2410.0,0.28087834]
[1747605416617,0.82949,2409.8,2409.6,3.2078]
[1747605416917,3.90935806,2410.1,2409.6,3.2078]
[1747605417318,0.82945,2410.0,2409.7,0.28107274]
[1747605417518,2.7699,2409.9,2409.7,0.28107274]
[1747605417719,2.7699,2409.9,2409.8,0.28107274]
[1747605418318,3.90935806,2409.9,2409.8,0.28107274]
[1747605418919,16.40635806,2409.9,2409.8,0.28107274]
[1747605419415,16.40635806,2409.9,2408.7,0.09218003]
[1747605419416,0.82984,2408.8,2408.7,0.09218003]
[1747605419617,0.82984,2408.8,2407.8,7.64571]
[1747605419618,15.7398,2408.8,2407.8,6.0691]
[1747605419917,6.1815,2408.7,2408.0,2.02360405]
[1747605420125,3.2078,2408.4,2408.0,2.02360405]
[1747605420323,15.5257,2408.3,2407.8,2.8613]
[1747605420518,0.83015,2408.0,2407.5,3.2078]
[1747605420715,3.2078,2408.4,2407.5,3.2078]
[1747605420716,2.9737,2407.9,2407.7,2.02360405]
[1747605421019,12.538,2407.8,2407.7,2.02360405]
[1747605421525,15.5117,2407.8,2407.5,3.2078]
[1747605421724,0.8303,2407.5,2407.3,2.45041962]
[1747605421920,2.9597,2407.4,2407.3,2.45041962]
[1747605423127,4.09915806,2407.4,2407.0,16.40475]
[1747605423324,4.09915806,2407.4,2407.3,2.02360405]
[1747605423517,16.57215806,2407.4,2407.3,2.02360405]
[1747605423718,16.57215806,2407.4,2407.0,15.5743]
[1747605423917,1.13945806,2407.4,2407.3,6.06176405]
[1747605424121,3.28109334,2407.8,2407.7,0.83022]
[1747605424428,3.28109334,2407.8,2407.7,2.02360405]
[1747605424725,3.28109334,2407.8,2407.7,0.09218003]
[1747605425132,15.73709334,2407.8,2407.7,0.09218003]
[1747605425421,16.56727334,2407.8,2407.7,0.09218003]
[1747605425627,16.56727334,2407.8,2407.2,3.2078]
[1747605425628,23.44489334,2407.8,2407.2,3.2078]
[1747605425924,0.83029,2407.5,2407.3,2.02360405]
[1747605426125,15.1538,2407.4,2405.2,12.446]
[1747605426430,3.2078,2406.5,2406.4,2.02360405]
[1747605426630,15.8198,2406.5,2406.4,2.02360405]
[1747605427227,15.8198,2406.5,2406.0,2.7532]
[1747605427419,2.7078,2406.4,2406.2,2.02360405]
[1747605427620,3.2078,2406.9,2406.4,2.02360405]
[1747605427826,3.2078,2407.8,2407.3,2.02360405]
[1747605428021,3.2078,2407.8,2407.4,16.1072]
[1747605428228,3.2030448,2407.8,2407.7,2.02360405]
[1747605428640,3.96269298,2408.2,2407.7,2.11578408]
[1747605428833,0.68159964,2408.2,2408.1,2.02360405]
[1747605429030,4.23019946,2408.5,2408.1,2.02360405]
[1747605429031,4.64429263,2408.6,2408.1,12.448]
[1747605429230,4.64429263,2408.6,2408.5,0.16997837]
[1747605430234,4.64429263,2408.6,2408.5,3.22797837]
[1747605430734,4.64429263,2408.6,2408.5,9.05791837]
[1747605431528,3.28109334,2408.6,2408.5,9.05791837]
[1747605431724,12.534,2409.3,2408.7,0.16997837]
[1747605432032,3.2078,2408.8,2408.5,3.33188209]
[1747605432229,0.82991,2408.6,2408.5,0.27388209]
[1747605432534,0.83018,2407.9,2407.3,15.6548]
[1747605432733,0.83018,2407.8,2406.8,12.447]
[1747605432935,16.34718,2407.8,2407.1,2.9065]
[1747605433235,20.53,2407.8,2407.1,2.9065]
[1747605433435,4.03812,2407.4,2407.3,0.16997837]
[1747605433936,3.2078,2407.4,2407.1,2.9065]
[1747605434228,0.8305,2406.9,2406.3,2.8098]
[1747605434433,12.582,2406.8,2406.5,0.16997837]
[1747605434735,3.2078,2406.6,2406.4,2.8786]
[1747605435132,2.836,2406.8,2406.5,0.16997837]
[1747605435337,2.836,2406.8,2406.7,0.16997837]
[1747605435539,16.62195472,2406.8,2406.7,0.16997837]
[1747605435741,16.61195472,2406.8,2406.7,0.16997837]
[1747605436936,17.72314303,2406.8,2406.7,0.16997837]
[1747605437338,2.45190944,2407.2,2407.1,0.83043]
[1747605437539,2.45190944,2407.2,2407.1,1.00040837]
[1747605437734,2.45190944,2407.2,2407.1,6.00040837]
[1747605437940,2.45190944,2407.2,2407.1,0.16997837]
[1747605438142,2.45190944,2407.2,2406.9,12.451]
[1747605438341,3.2078,2407.0,2406.9,12.62097837]
[1747605440341,5.65970944,2407.8,2406.9,20.6588]
[1747605440641,3.2078,2408.8,2407.7,3.37777837]
[1747605440940,0.82978,2409.0,2408.5,0.99990837]
[1747605441132,3.2078,2409.1,2409.0,0.82977]
[1747605441341,3.2078,2409.1,2409.0,0.99974837]
[1747605441533,3.2078,2409.1,2408.9,13.28179]
[1747605441740,15.8638,2409.1,2408.6,2.8502]
[1747605441935,3.2078,2408.8,2408.6,2.8502]
[1747605442141,0.08303234,2408.7,2408.6,2.8502]
[1747605442540,0.08303234,2408.7,2408.6,3.85008837]
[1747605445141,0.08303234,2408.7,2408.6,9.12283506]
[1747605445340,0.08303234,2408.7,2408.6,4.12283506]
[1747605446248,4.03752,2409.2,2408.8,0.8298]
[1747605446551,4.03752,2409.2,2409.0,0.16997837]
[1747605447145,3.2078,2409.2,2409.1,0.27274669]
[1747605447344,4.0375,2409.2,2409.1,0.27274669]
[1747605447550,6.8604,2409.2,2409.1,0.27274669]
[1747605447750,6.0307,2409.2,2409.1,0.27274669]
[1747605448051,6.8604,2409.2,2409.1,0.27274669]
[1747605448241,6.0307,2409.2,2409.1,0.27274669]
[1747605449549,3.2078,2409.2,2409.1,0.27274669]
[1747605449751,6.2612,2409.2,2409.1,0.27274669]
[1747605451559,7.89580397,2409.2,2409.1,0.27274669]
[1747605453260,8.72550397,2409.2,2409.1,0.27274669]
[1747605453459,8.72550397,2409.2,2408.9,12.45]
[1747605454066,0.82974,2409.1,2409.0,0.27278162]
[1747605454267,3.86264,2409.1,2409.0,0.27278162]
[1747605454469,3.0329,2409.1,2409.0,0.27278162]
[1747605454661,4.84240397,2409.2,2409.0,1.27252999]
[1747605454966,4.84240397,2409.2,2409.1,0.16997837]
[1747605455356,4.84240397,2409.2,2409.1,1.27249999]
[1747605455561,4.84240397,2409.2,2409.1,4.22059999]
[1747605456065,4.84240397,2409.2,2409.1,4.31278002]
[1747605457266,3.2078,2409.2,2409.1,4.31278002]
[1747605457466,4.0375,2409.2,2409.1,4.31278002]
[1747605457661,3.2078,2409.2,2409.1,4.31278002]
[1747605457867,4.0375,2409.2,2409.1,4.31278002]
[1747605458068,4.0375,2409.2,2409.1,1.36468002]
[1747605458773,4.0375,2409.2,2409.1,0.53494002]
[1747605458974,4.0375,2409.2,2409.1,0.44275999]
[1747605459180,3.2078,2409.2,2409.1,1.27249999]
[1747605459468,4.0375,2409.2,2409.1,0.44275999]
[1747605459773,9.0375,2409.2,2409.1,0.27278162]
[1747605460075,9.0375,2409.2,2409.1,0.36496165]
[1747605460271,12.0955,2409.2,2409.1,0.36496165]
[1747605460471,0.82987,2408.7,2408.6,12.418]
[1747605460672,4.03767,2408.7,2408.6,12.418]
[1747605460967,3.2078,2408.7,2408.1,7.02667]
[1747605461172,0.83007,2408.2,2407.7,41.869]
[1747605461369,5.9633,2408.1,2407.7,41.869]
[1747605461567,2.7555,2408.1,2408.0,0.16997837]
[1747605461769,2.7555,2408.1,2407.8,0.16997837]
[1747605461969,2.7555,2408.1,2407.4,12.419]
[1747605461970,3.2078,2407.9,2407.4,12.419]
[1747605462164,4.03807,2407.6,2407.3,1.62678774]
[1747605462372,2.864,2407.5,2407.4,0.16997837]
[1747605462577,6.0718,2407.5,2407.4,0.16997837]
[1747605464768,3.2078,2407.5,2407.4,0.16997837]
[1747605464971,2.8653,2407.9,2407.4,5.16997837]
[1747605465171,4.84240397,2408.0,2407.9,0.16997837]
[1747605465368,4.84240397,2408.0,2407.9,1.00012837]
[1747605465564,0.11361395,2408.0,2407.9,5.83015]
[1747605465770,1.35686645,2408.5,2408.4,0.82998]
[1747605466072,3.2078,2409.2,2409.1,0.92192003]
[1747605466268,3.2078,2409.2,2409.1,13.34292003]
[1747605466269,3.2908151,2409.2,2409.1,13.34292003]
[1747605466474,0.0830151,2409.2,2409.1,18.34292003]
[1747605467477,0.0830151,2409.2,2409.1,21.55072003]
[1747605467672,2.9736,2410.2,2409.1,23.72588003]
[1747605467870,2.9736,2410.2,2409.8,0.82947]
[1747605468174,2.9736,2410.2,2409.9,15.4249]
[1747605469174,3.80297,2410.2,2409.9,18.4829]
[1747605469881,2.9736,2410.2,2409.9,18.4829]
[1747605470376,2.9736,2410.2,2409.9,16.25435]
[1747605471974,2.9736,2410.2,2410.0,0.82942]
[1747605472179,2.9736,2410.2,2410.0,3.58762]
[1747605472380,2.9736,2410.2,2410.1,0.27120978]
[1747605474685,2.9736,2410.2,2410.1,1.10059978]
[1747605476285,3.80296,2410.2,2410.1,0.27120978]
[1747605476685,2.9736,2410.2,2410.1,0.27120978]
[1747605477090,3.80296,2410.2,2410.1,0.27120978]
[1747605478487,2.9736,2410.2,2410.1,0.27120978]
[1747605478689,3.80296,2410.2,2410.1,0.27120978]
[1747605480682,8.80296,2410.2,2410.1,0.27120978]
[1747605480887,0.82956,2409.6,2409.5,12.414]
[1747605481088,3.2078,2409.6,2409.1,0.09218003]
[1747605481383,4.0375,2409.2,2409.1,0.09218003]
[1747605481585,3.2078,2409.2,2409.1,0.09218003]
[1747605481783,20.5998,2409.2,2408.3,1.22549643]
[1747605481983,0.83005,2408.2,2408.1,1.19658651]
[1747605482187,12.69785828,2408.2,2407.2,16.46969653]
[1747605482490,0.83036,2407.3,2407.2,4.05569653]
[1747605482694,15.5998,2407.3,2407.2,4.05569653]
[1747605483195,19.28216,2407.3,2407.2,4.05569653]
[1747605483490,3.2078,2407.3,2407.2,4.05569653]
[1747605483690,3.2078,2407.3,2406.9,2.7636]
[1747605483893,12.391,2407.8,2407.2,0.83039]
[1747605484090,12.391,2407.8,2406.9,7.7636]
[1747605484091,13.22121,2407.8,2407.3,15.1786]
[1747605484288,3.2078,2407.7,2407.4,12.415]
[1747605484484,4.03802,2407.7,2407.4,12.415]
[1747605484686,1.10079824,2407.6,2407.4,12.415]
[1747605485087,1.10079824,2407.6,2407.5,2.7636]
[1747605485791,1.10079824,2407.6,2407.5,8.59389]
[1747605485994,3.28223463,2408.0,2407.9,0.83015]
[1747605486299,3.28223463,2408.0,2407.5,8.8144]
[1747605486486,3.28223463,2408.0,2407.6,12.392]
[1747605486692,4.11235463,2408.0,2407.7,2.8524]
[1747605486996,0.83012,2408.0,2407.7,2.8524]
[1747605487197,0.83015,2407.9,2407.7,2.8524]
[1747605487592,3.2078,2408.1,2407.7,7.8524]
[1747605487799,0.83015,2407.9,2407.7,2.8524]
[1747605488096,0.83015,2407.9,2407.8,2.8524]
[1747605488499,0.83015,2407.9,2407.8,15.2444]
[1747605489196,0.83015,2407.9,2407.8,18.3024]
[1747605490096,4.0379,2408.1,2407.8,18.3024]
[1747605490696,3.2078,2408.1,2407.8,18.3024]
[1747605491096,3.2078,2408.1,2408.0,0.83011]
[1747605492000,3.2078,2408.1,2408.0,5.83011]
[1747605492192,3.2078,2408.1,2408.0,8.88811]
[1747605493101,3.2078,2408.1,2408.0,9.15781118]
[1747605493901,3.2078,2408.1,2408.0,3.32770118]
[1747605494201,4.03788,2408.1,2408.0,3.32770118]
[1747605495200,0.83011,2408.0,2407.9,12.394]
[1747605495400,3.84861,2408.0,2407.9,12.394]
[1747605495800,3.84861,2408.0,2407.9,12.66406663]
[1747605499505,3.84861,2408.0,2407.9,12.75624666]
[1747605499999,3.84861,2408.0,2407.9,12.48618003]
[1747605500203,3.84861,2408.0,2407.9,0.09218003]
[1747605502502,4.84595202,2408.1,2407.9,0.09218003]
[1747605502701,3.82761,2408.0,2407.9,0.09218003]
[1747605504408,17.21095202,2408.1,2407.9,0.92230003]
[1747605504808,4.84595202,2408.1,2408.0,3.72091]
[1747605505008,4.84595202,2408.1,2408.0,3.99173078]
[1747605505204,5.67603202,2408.1,2408.0,3.16162078]
[1747605505411,5.67603202,2408.1,2408.0,0.27082078]
[1747605505609,0.83011,2408.0,2407.9,15.54718003]
[1747605505908,3.63231,2408.0,2407.9,15.81835003]
[1747605506212,3.63231,2408.0,2407.9,12.76035003]
[1747605506510,3.63231,2408.0,2407.9,0.36335003]
[1747605508212,6.08833529,2408.0,2407.9,0.36335003]
[1747605509114,0.83029,2407.5,2407.4,12.397]
[1747605509913,16.21759,2407.5,2407.4,12.397]
[1747605510504,2.07585,2407.4,2407.0,12.397]
[1747605510706,0.83046,2407.0,2406.9,3.0749]
[1747605510906,2.07607,2407.1,2406.8,12.397]
[1747605511101,0.83048,2407.0,2406.8,12.397]
[1747605511616,0.83049,2406.9,2406.8,12.397]
[1747605512007,4.03829,2406.9,2406.8,12.397]
[1747605513215,4.03829,2406.9,2406.8,15.455]
[1747605513610,3.2078,2406.9,2406.8,15.455]
[1747605513811,6.49003463,2407.2,2406.8,20.455]
[1747605514016,6.49003463,2407.2,2407.1,0.83042]
[1747605514218,3.28223463,2407.2,2407.1,5.83042]
[1747605514616,3.28223463,2407.2,2407.1,8.70872]
[1747605516223,3.2078,2407.8,2407.5,0.83026]
[1747605516419,0.83022,2407.7,2407.6,3.69525]
[1747605516620,0.83022,2407.7,2407.6,2.865]
[1747605517218,3.30901482,2407.7,2407.6,2.865]
[1747605518513,3.30901482,2407.7,2407.6,3.69525]
[1747605518821,3.30901482,2407.7,2407.6,2.865]
[1747605519325,2.47879482,2407.7,2407.6,2.865]
[1747605519520,2.47879482,2407.7,2407.6,3.69525]
[1747605520618,2.47879482,2407.8,2407.7,0.83022]
[1747605521119,2.47879482,2407.8,2407.7,1.10395296]
[1747605521815,2.47879482,2407.8,2407.7,6.10395296]
[1747605522030,4.08621228,2408.5,2408.4,0.82998]
[1747605522222,3.04997228,2408.5,2408.4,13.17098]
[1747605522623,3.04997228,2408.5,2408.4,13.44471296]
[1747605523319,3.04997228,2408.5,2408.4,16.50271296]
[1747605524219,1.02986707,2408.7,2408.6,0.82991]
[1747605524626,1.02986707,2408.7,2408.6,1.10364296]
[1747605525424,1.02986707,2408.7,2408.6,4.15154296]
[1747605526216,7.07e-06,2408.7,2408.6,12.35934296]
[1747605526421,7.07e-06,2408.7,2408.6,54.21534296]
[1747605526623,0.47495601,2409.0,2408.9,0.8298]
[1747605526924,6.01e-06,2409.0,2408.9,16.3776]
[1747605527228,1.23605892,2409.1,2409.0,0.82977]
[1747605527421,1.23605892,2409.1,2409.0,3.87767]
[1747605527622,1.23605892,2409.1,2409.0,8.87767]
[1747605527927,1.23605892,2409.1,2409.0,9.15140296]
[1747605528127,1.23605892,2409.1,2409.0,12.20940296]
[1747605529530,0.18350857,2409.3,2409.2,0.8297]
[1747605529730,8.57e-06,2409.3,2409.2,4.0375]
[1747605530030,1.52361172,2409.9,2409.8,0.82949]
[1747605530230,1.52361172,2409.9,2409.8,13.16649]
[1747605530725,1.52361172,2409.9,2409.8,16.41962296]
[1747605531129,1.71359867,2410.1,2410.0,0.82943]
[1747605531728,1.71359867,2410.1,2410.0,1.10316296]
[1747605531928,1.71359867,2410.1,2410.0,4.17186296]
[1747605532121,1.71359867,2410.1,2410.0,12.22986296]
[1747605532327,1.71359867,2410.1,2410.0,7.22986296]
[1747605532730,1.71359867,2410.1,2410.0,18.73543296]
[1747605532927,2.54298867,2410.1,2410.0,6.40043296]
[1747605533128,2.54298867,2410.1,2410.0,15.67743296]
[1747605533319,2.54298867,2410.1,2410.0,0.27373296]
[1747605533519,2.07382,2409.8,2409.1,12.335]
[1747605533723,3.2078,2409.2,2408.6,12.42518003]
[1747605533920,0.82987,2408.7,2408.6,12.42518003]
[1747605534326,0.82994,2408.5,2408.4,1.6502246]
[1747605534629,3.2078,2408.5,2408.2,12.333]
[1747605534820,2.876,2408.4,2408.2,12.333]
[1747605535829,2.876,2408.4,2408.3,0.83001]
[1747605536130,12.283,2408.7,2408.4,0.82997]
[1747605536423,2.876,2408.7,2408.3,6.1078]
[1747605536627,2.876,2408.7,2408.5,0.82992]
[1747605536924,3.2078,2408.9,2408.8,0.82984]
[1747605537123,0.82959,2409.6,2408.8,0.82984]
[1747605537124,2.876,2409.5,2408.8,16.22184]
[1747605537323,2.876,2409.5,2408.9,3.2078]
[1747605537626,3.2078,2410.0,2409.5,0.82958]
[1747605537929,0.82953,2409.7,2409.6,12.334]
[1747605538227,0.82952,2409.8,2409.6,12.334]
[1747605538424,3.0582,2409.7,2409.6,12.334]
[1747605538629,7.09553,2409.7,2409.6,12.334]
[1747605539024,12.09553,2409.7,2409.6,12.334]
[1747605539225,0.82974,2409.1,2408.8,3.0039]
[1747605539428,3.88797,2409.0,2408.9,12.334]
[1747605539734,7.09577,2409.0,2408.9,12.334]
[1747605540228,3.0582,2409.0,2408.9,12.334]
[1747605540433,3.058,2409.6,2408.9,17.334]
[1747605540627,6.95164,2409.7,2409.2,0.82967]
[1747605540930,6.95164,2409.7,2409.3,3.1193]
[1747605541134,6.95164,2409.7,2409.4,12.334]
[1747605541832,6.1221,2409.7,2409.4,12.334]
[1747605542131,6.1221,2409.7,2409.4,15.392]
[1747605542628,6.1221,2409.7,2409.4,16.22161]
[1747605542934,3.2078,2409.7,2409.6,0.82956]
[1747605543632,3.2078,2409.7,2409.5,3.058]
[1747605543832,3.91186,2409.6,2409.5,3.058]
[1747605544230,0.8298,2408.9,2408.8,12.333]
[1747605544434,0.82987,2408.7,2408.6,0.09218003]
[1747605544831,3.0823,2408.8,2408.6,0.09218003]
[1747605545036,3.2078,2409.3,2409.2,0.8297]
[1747605545231,3.2078,2409.6,2409.5,0.82958]
[1747605545430,3.2078,2409.6,2409.5,12.333]
[1747605545628,4.03736,2409.6,2409.5,12.333]
[1747605546126,4.03736,2409.6,2409.5,3.34341711]
[1747605547224,4.03736,2409.6,2409.5,0.28541711]
[1747605550438,7.15616,2409.6,2409.5,0.28541711]
[1747605553144,7.15616,2409.6,2409.5,3.34341711]
[1747605553742,9.61359379,2409.6,2409.5,3.34341711]
[1747605554134,9.61359379,2409.6,2409.5,0.28541711]
[1747605555137,9.61359379,2409.6,2409.5,3.34341711]
[1747605557341,9.61359379,2409.6,2409.5,0.28541711]
[1747605560247,9.61359379,2409.6,2409.5,0.37759714]
[1747605560747,0.82982,2408.9,2408.7,4.03766]
[1747605560944,0.82994,2408.5,2408.4,12.25]
[1747605561143,0.83005,2408.2,2408.1,1.22400764]
[1747605561446,0.83011,2408.0,2407.9,1.6502246]
[1747605561642,13.04111,2408.0,2407.9,1.6502246]
[1747605562042,18.04111,2408.0,2407.9,1.6502246]
[1747605563049,18.04111,2408.0,2407.3,15.51497043]
[1747605563050,2.07544,2407.9,2407.3,3.26497043]
[1747605563347,0.83053,2406.8,2406.5,12.25]
[1747605563647,0.8306,2406.6,2406.5,15.3124]
[1747605564153,3.83249,2406.7,2406.5,18.3704]
[1747605564539,3.83249,2406.7,2406.5,3.058]
[1747605564748,0.8306,2406.6,2406.5,3.058]
[1747605565047,3.1314,2406.6,2406.5,3.058]
[1747605565646,3.962,2406.6,2406.5,3.058]
[1747605566146,0.83064,2406.5,2406.2,12.253]
[1747605566343,3.1314,2406.4,2406.2,12.253]
[1747605567345,3.1314,2406.4,2406.3,2.9682]
[1747605568048,1.6423904,2406.7,2406.3,2.9682]